{"text_format":"1","workbook":"xlsx","n_sheets":2,"sheets":["IB Partner Contributions","Analysis"],"not_rendered":{"charts":0,"images":0,"macros":1,"external_links":0,"defined_names":23,"comments":0,"pivot_tables":0},"unopened":[],"bounds":{"document_bytes":16777216,"sheet_cells":100000,"rows_first":2000,"rows_last":500,"rows_between":2000,"halvings":0,"cell_chars":16384,"cell_head_chars":4096},"cells_cut":0,"cells_raw":0,"read":"whole","date_system":"1900"}

{"sheet":"IB Partner Contributions","index":0,"n_rows":69,"n_cols":7,"rows_kept":69,"cut":false,"hidden":false,"merged":[[56,3,56,4],[68,2,68,3],[68,4,68,7],[65,2,65,7],[66,2,66,3],[66,4,66,7],[67,2,67,3],[67,4,67,7],[63,2,63,7],[56,6,56,7],[58,3,58,7],[61,2,61,7],[50,1,50,7],[53,2,53,7],[54,6,54,7],[55,6,55,7],[47,2,47,3],[47,4,47,7],[52,2,52,7],[54,3,54,4],[55,3,55,4],[33,3,33,4],[34,3,34,4],[35,3,35,4],[25,2,25,3],[26,2,26,3],[34,6,34,7],[35,6,35,7],[44,2,44,7],[40,2,40,7],[42,2,42,7],[46,2,46,3],[46,4,46,7],[37,3,37,7],[45,2,45,3],[45,4,45,7],[1,1,1,2],[1,3,1,5],[5,1,5,2],[9,2,9,6],[19,2,19,7],[16,3,16,7],[7,1,7,7],[3,1,3,7],[5,3,5,7],[11,3,11,4],[14,6,14,7],[21,2,21,7],[23,2,23,7],[33,6,33,7],[24,2,24,3],[6,1,6,7],[24,4,24,7],[25,4,25,7],[26,4,26,7],[30,1,30,7],[31,2,31,7],[12,3,12,4],[13,3,13,4],[14,3,14,4],[11,6,11,7],[12,6,12,7],[13,6,13,7]]}
[]
[null," Name of Grant Program:",null,"Massachusetts Mathematics and Science Partnership Program, Continuation",null,null,"Fund Code: 150-A"]
[]
[null,"PART IV - PARTNER CONTRIBUTIONS AND COMMITMENTS "]
[]
[null,"Applicant (Organization):"]
[null,"Project Title:"]
[null,"Complete the forms in this section only if new partners have been added or the role of a partner has changed."]
[null,"NEW PARTNER: Institution of Higher Education"]
[null,"A.","Mathematics, Science, or Engineering Department of an Institution of Higher Education "]
[]
[null,null,"College or University:",null,null,"Phone:"]
[null,null,"Department:",null,null,"Fax:"]
[null,null,"Contact:",null,null,"Email:"]
[null,null,"Title:"]
[]
[null,null,"Address:"]
[null,null,"City:",null,"State:",null,"Zip Code:"]
[]
[null,null,"Describe what supports the institution of higher education will provide, to enhance partnership activities, such as: faculty to plan and present the course; meetings to plan and implement policy changes at the institution; new degree programs and/or institutionalization of MMSP course; onsite support for educators during the school year, etc.  A syllabus should be developed for each professional development (PD) course offered."]
[]
[]
[]
[null,null,"Institution of Higher Education"]
[null,null,"Department Name:"]
[null,null,"Typed Name of Chairperson of the Mathematics, Science, or Engineering Department of Partner Institution(s):"]
[null,null,"Authorized Signature of Chairperson:"]
[]
[]
[]
[null,"PARTNER CONTRIBUTIONS AND COMMITMENTS"]
[null,"B.","NEW PARTNER: High-Need School District "]
[]
[null,null,"District:",null,null,"Phone:"]
[null,null,"Contact:",null,null,"Fax:"]
[null,null,"Title:",null,null,"Email:"]
[]
[null,null,"Mailing Address:"]
[null,null,"City:",null,"State:",null,"Zip Code:"]
[]
[null,null,"Describe how the High-Need District will support the partnership activities, such as identifying and recruiting educators; providing administrative support by allowing time for educators to meet and plan; linking MMSP coursework and development of common assessments to individual professional development plans; providing release time for educators to meet with administrators and other teacher partners to assess administration of common assessments, data analysis, and future PD needs; etc. "]
[]
[]
[]
[null,null,"HIGH-NEED SCHOOL DISTRICT (LEA)"]
[null,null,"District Name:"]
[null,null,"Typed Name of Superintendent:"]
[null,null,"Signature of Superintendent:"]
[]
[]
[null,"PARTNER CONTRIBUTIONS AND COMMITMENTS "]
[null,"C.","NEW ADDITIONAL PARTNERS"]
[null,null,"Additional partners may include engineers, mathematicians, or scientists from institutions of higher education; teacher training department within institutions of higher education; additional school districts; business partners; and/or non-profit or for-profit organizations of demonstrated effectiveness in improving the quality of mathematics and science teaching."]
[null,null,"Additional Partner  "]
[null,null,"Institution or District:",null,null,"Phone:"]
[null,null,"Contact:",null,null,"Fax:"]
[null,null,"Title:",null,null,"Email:"]
[]
[null,null,"Mailing Address:"]
[null,null,"City:",null,"State:",null,"Zip Code:"]
[]
[null,null,"Describe the role of this partner and describe specific ways that this partner will support the partnership activities."]
[]
[]
[]
[null,null,"ADDITIONAL PARTNER: \n\n"]
[null,null,"Name of Person or Institution:"]
[null,null,"Typed Name of Authorized Signatory:"]
[null,null,"Signature of Authorized Signatory:"]

{"sheet":"Analysis","index":1,"n_rows":48,"n_cols":31,"rows_kept":48,"cut":false,"hidden":true,"merged":[]}
["Dis_Name","Dis_Code","Title ","CatID","Category","Details","#_of_Staff","FTE","Rate","Hr_Day","Amount","PrimaryID","Primary_Function","FlexUseID","Flex_Use","Flex_Into","Date_Appoved"]
[{"$f":"VLOOKUP(#REF!,#REF!,5,FALSE)","v":{"$error":"#REF!"}},{"$f":"LEFT(VLOOKUP(#REF!,#REF!,6,FALSE),4)","v":{"$error":"#REF!"}},null,"01","Administrators",{"$f":"#REF!","v":{"$error":"#REF!"}},{"$f":"#REF!","v":{"$error":"#REF!"}},{"$f":"#REF!","v":{"$error":"#REF!"}},null,null,{"$f":"#REF!","v":{"$error":"#REF!"}},{"$f":"VLOOKUP(M2,T2:U48,2,TRUE)","v":{"$error":"#REF!"}},{"$f":"#REF!","v":{"$error":"#REF!"}},null,null,null,null,null,null,0,"00",null,1,null,null,null,1,null,"IIA"]
[{"$f":"VLOOKUP(#REF!,#REF!,5,FALSE)","v":{"$error":"#REF!"}},{"$f":"LEFT(VLOOKUP(#REF!,#REF!,6,FALSE),4)","v":{"$error":"#REF!"}},null,"01","Administrators",{"$f":"#REF!","v":{"$error":"#REF!"}},{"$f":"#REF!","v":{"$error":"#REF!"}},{"$f":"#REF!","v":{"$error":"#REF!"}},null,null,{"$f":"#REF!","v":{"$error":"#REF!"}},{"$f":"VLOOKUP(M2,T2:U48,2,TRUE)","v":{"$error":"#REF!"}},{"$f":"#REF!","v":{"$error":"#REF!"}},null,null,null,null,null,null,"Alternative Programs","01",null,2,"Data Collection/Management",null,null,2,"Class Size Reduction","IIA",1]
[{"$f":"VLOOKUP(#REF!,#REF!,5,FALSE)","v":{"$error":"#REF!"}},{"$f":"LEFT(VLOOKUP(#REF!,#REF!,6,FALSE),4)","v":{"$error":"#REF!"}},null,"01","Administrators",{"$f":"#REF!","v":{"$error":"#REF!"}},null,null,null,null,{"$f":"#REF!","v":{"$error":"#REF!"}},{"$f":"VLOOKUP(M2,T2:U48,2,TRUE)","v":{"$error":"#REF!"}},{"$f":"#REF!","v":{"$error":"#REF!"}},null,null,null,null,null,null,"Class Size Reduction","03",null,10,"Program Administration",null,null,10,"Teacher Retention ","IIA",9,"Distance Learning"]
[{"$f":"VLOOKUP(#REF!,#REF!,5,FALSE)","v":{"$error":"#REF!"}},{"$f":"LEFT(VLOOKUP(#REF!,#REF!,6,FALSE),4)","v":{"$error":"#REF!"}},null,"01","Administrators",{"$f":"#REF!","v":{"$error":"#REF!"}},null,null,null,null,{"$f":"#REF!","v":{"$error":"#REF!"}},{"$f":"VLOOKUP(M2,T2:U48,2,TRUE)","v":{"$error":"#REF!"}},{"$f":"#REF!","v":{"$error":"#REF!"}},null,null,null,null,null,null,"Community Involvement","04",null,11,"School Choice",null,null,11,"Other (explain in Notes Page)","IIA",10,"Flex"]
[{"$f":"VLOOKUP(#REF!,#REF!,5,FALSE)","v":{"$error":"#REF!"}},{"$f":"LEFT(VLOOKUP(#REF!,#REF!,6,FALSE),4)","v":{"$error":"#REF!"}},null,"01","Administrators",{"$f":"#REF!","v":{"$error":"#REF!"}},null,null,null,null,{"$f":"#REF!","v":{"$error":"#REF!"}},{"$f":"VLOOKUP(M2,T2:U48,2,TRUE)","v":{"$error":"#REF!"}},{"$f":"#REF!","v":{"$error":"#REF!"}},null,null,null,null,null,null,"Community Service","04",null,12,"Student Support Services",null,null,null,null,null,11,"Gifted and Talented"]
[{"$f":"VLOOKUP(#REF!,#REF!,5,FALSE)","v":{"$error":"#REF!"}},{"$f":"LEFT(VLOOKUP(#REF!,#REF!,6,FALSE),4)","v":{"$error":"#REF!"}},null,"02","Instructional/Professional Staff",{"$f":"#REF!","v":{"$error":"#REF!"}},{"$f":"#REF!","v":{"$error":"#REF!"}},{"$f":"#REF!","v":{"$error":"#REF!"}},null,null,{"$f":"#REF!","v":{"$error":"#REF!"}},{"$f":"VLOOKUP(M2,T2:U48,2,TRUE)","v":{"$error":"#REF!"}},{"$f":"#REF!","v":{"$error":"#REF!"}},null,null,null,null,null,null,"Course Planning/Instruction","22",null,2,"Alternative Programs",null,2,"Alternative Programs","Planning and Evaluation",null,17,"Parent Involvement"]
[{"$f":"VLOOKUP(#REF!,#REF!,5,FALSE)","v":{"$error":"#REF!"}},{"$f":"LEFT(VLOOKUP(#REF!,#REF!,6,FALSE),4)","v":{"$error":"#REF!"}},null,"02","Instructional/Professional Staff",{"$f":"#REF!","v":{"$error":"#REF!"}},null,null,null,null,{"$f":"#REF!","v":{"$error":"#REF!"}},{"$f":"VLOOKUP(M2,T2:U48,2,TRUE)","v":{"$error":"#REF!"}},{"$f":"#REF!","v":{"$error":"#REF!"}},null,null,null,null,null,null,"Data Collection/Management","06",null,8,"Data Collection/Management",null,8,"Data Collection/Management",null,null,23,"Safety/Security Activities"]
[{"$f":"VLOOKUP(#REF!,#REF!,5,FALSE)","v":{"$error":"#REF!"}},{"$f":"LEFT(VLOOKUP(#REF!,#REF!,6,FALSE),4)","v":{"$error":"#REF!"}},null,"03","Support Staff",{"$f":"#REF!","v":{"$error":"#REF!"}},{"$f":"#REF!","v":{"$error":"#REF!"}},{"$f":"#REF!","v":{"$error":"#REF!"}},null,null,{"$f":"#REF!","v":{"$error":"#REF!"}},{"$f":"VLOOKUP(M2,T2:U48,2,TRUE)","v":{"$error":"#REF!"}},{"$f":"#REF!","v":{"$error":"#REF!"}},null,null,null,null,null,null,"Distance Learning","07",null,14,"Instruction-Extended Day/Year (K-12)",null,14,"Instruction-Extended Day/Year (K-12)",null,null,29,"Substance Prevention Education"]
[{"$f":"VLOOKUP(#REF!,#REF!,5,FALSE)","v":{"$error":"#REF!"}},{"$f":"LEFT(VLOOKUP(#REF!,#REF!,6,FALSE),4)","v":{"$error":"#REF!"}},null,"03","Support Staff",{"$f":"#REF!","v":{"$error":"#REF!"}},{"$f":"#REF!","v":{"$error":"#REF!"}},{"$f":"#REF!","v":{"$error":"#REF!"}},null,null,{"$f":"#REF!","v":{"$error":"#REF!"}},{"$f":"VLOOKUP(M2,T2:U48,2,TRUE)","v":{"$error":"#REF!"}},{"$f":"#REF!","v":{"$error":"#REF!"}},null,null,null,null,null,null,"Flex","09",null,17,"Parent Involvement",null,17,"Parent Involvement",null,null,32,"Technology for Instruction"]
[{"$f":"VLOOKUP(#REF!,#REF!,5,FALSE)","v":{"$error":"#REF!"}},{"$f":"LEFT(VLOOKUP(#REF!,#REF!,6,FALSE),4)","v":{"$error":"#REF!"}},null,"03","Support Staff",{"$f":"#REF!","v":{"$error":"#REF!"}},{"$f":"#REF!","v":{"$error":"#REF!"}},{"$f":"#REF!","v":{"$error":"#REF!"}},null,null,{"$f":"#REF!","v":{"$error":"#REF!"}},{"$f":"VLOOKUP(M2,T2:U48,2,TRUE)","v":{"$error":"#REF!"}},{"$f":"#REF!","v":{"$error":"#REF!"}},null,null,null,null,null,null,"Follow-Up/Classroom Support","42",null,18,"Parent Programs",null,18,"Parent Programs",null,null,33,"Technology Literacy"]
[{"$f":"VLOOKUP(#REF!,#REF!,5,FALSE)","v":{"$error":"#REF!"}},{"$f":"LEFT(VLOOKUP(#REF!,#REF!,6,FALSE),4)","v":{"$error":"#REF!"}},null,"03","Support Staff",{"$f":"#REF!","v":{"$error":"#REF!"}},{"$f":"#REF!","v":{"$error":"#REF!"}},{"$f":"#REF!","v":{"$error":"#REF!"}},null,null,{"$f":"#REF!","v":{"$error":"#REF!"}},{"$f":"VLOOKUP(M2,T2:U48,2,TRUE)","v":{"$error":"#REF!"}},{"$f":"#REF!","v":{"$error":"#REF!"}},null,null,null,null,null,null,"Fringe Benefits","10",null,19,"Peer Mediation",null,19,"Peer Mediation",null,null,34,"Violence Prevention Education"]
[{"$f":"VLOOKUP(#REF!,#REF!,5,FALSE)","v":{"$error":"#REF!"}},{"$f":"LEFT(VLOOKUP(#REF!,#REF!,6,FALSE),4)","v":{"$error":"#REF!"}},null,"04","Fringe Benefits","MTRS",null,null,null,null,{"$f":"#REF!","v":{"$error":"#REF!"}},{"$f":"VLOOKUP(M2,T2:U48,2,TRUE)","v":{"$error":"#REF!"}},null,null,null,null,null,null,null,"Gifted and Talented","11",null,20,"Planning and Evaluation",null,20,"Planning and Evaluation",null,null,35,"Other (explain in Notes Page)"]
[{"$f":"VLOOKUP(#REF!,#REF!,5,FALSE)","v":{"$error":"#REF!"}},{"$f":"LEFT(VLOOKUP(#REF!,#REF!,6,FALSE),4)","v":{"$error":"#REF!"}},null,"04","Fringe Benefits","Other Fringe",null,null,null,null,{"$f":"#REF!","v":{"$error":"#REF!"}},{"$f":"VLOOKUP(M2,T2:U48,2,TRUE)","v":{"$error":"#REF!"}},null,null,null,null,null,null,null,"High Quality PD","12",null,21,"Pre-School Activies",null,21,"Pre-School Activies"]
[{"$f":"VLOOKUP(#REF!,#REF!,5,FALSE)","v":{"$error":"#REF!"}},{"$f":"LEFT(VLOOKUP(#REF!,#REF!,6,FALSE),4)","v":{"$error":"#REF!"}},null,"04","Fringe Benefits","Other Fringe",null,null,null,null,{"$f":"#REF!","v":{"$error":"#REF!"}},{"$f":"VLOOKUP(M2,T2:U48,2,TRUE)","v":{"$error":"#REF!"}},null,null,null,null,null,null,null,"Homeless Services","13",null,22,"Program Administration",null,22,"Program Administration"]
[{"$f":"VLOOKUP(#REF!,#REF!,5,FALSE)","v":{"$error":"#REF!"}},{"$f":"LEFT(VLOOKUP(#REF!,#REF!,6,FALSE),4)","v":{"$error":"#REF!"}},null,"05","Contractual Services",{"$f":"#REF!","v":{"$error":"#REF!"}},null,null,{"$f":"#REF!","v":{"$error":"#REF!"}},{"$f":"#REF!","v":{"$error":"#REF!"}},{"$f":"#REF!","v":{"$error":"#REF!"}},{"$f":"VLOOKUP(M2,T2:U48,2,TRUE)","v":{"$error":"#REF!"}},{"$f":"#REF!","v":{"$error":"#REF!"}},null,null,null,null,null,null,"Indirect Costs","14",null,23,"Public Reporting",null,23,"Public Reporting"]
[{"$f":"VLOOKUP(#REF!,#REF!,5,FALSE)","v":{"$error":"#REF!"}},{"$f":"LEFT(VLOOKUP(#REF!,#REF!,6,FALSE),4)","v":{"$error":"#REF!"}},null,"05","Contractual Services",{"$f":"#REF!","v":{"$error":"#REF!"}},null,null,{"$f":"#REF!","v":{"$error":"#REF!"}},{"$f":"#REF!","v":{"$error":"#REF!"}},{"$f":"#REF!","v":{"$error":"#REF!"}},{"$f":"VLOOKUP(M2,T2:U48,2,TRUE)","v":{"$error":"#REF!"}},{"$f":"#REF!","v":{"$error":"#REF!"}},null,null,null,null,null,null,"Instruction-Extended Day/Year (K-12)","15",null,27,"School Nurses",null,27,"School Nurses"]
[{"$f":"VLOOKUP(#REF!,#REF!,5,FALSE)","v":{"$error":"#REF!"}},{"$f":"LEFT(VLOOKUP(#REF!,#REF!,6,FALSE),4)","v":{"$error":"#REF!"}},null,"05","Contractual Services",{"$f":"#REF!","v":{"$error":"#REF!"}},null,null,{"$f":"#REF!","v":{"$error":"#REF!"}},{"$f":"#REF!","v":{"$error":"#REF!"}},{"$f":"#REF!","v":{"$error":"#REF!"}},{"$f":"VLOOKUP(M2,T2:U48,2,TRUE)","v":{"$error":"#REF!"}},{"$f":"#REF!","v":{"$error":"#REF!"}},null,null,null,null,null,null,"Miscellaneous and Transportation","42",null,31,"Substance Prevention Education",null,31,"Substance Prevention Education"]
[{"$f":"VLOOKUP(#REF!,#REF!,5,FALSE)","v":{"$error":"#REF!"}},{"$f":"LEFT(VLOOKUP(#REF!,#REF!,6,FALSE),4)","v":{"$error":"#REF!"}},null,"05","Contractual Services",{"$f":"#REF!","v":{"$error":"#REF!"}},null,null,{"$f":"#REF!","v":{"$error":"#REF!"}},{"$f":"#REF!","v":{"$error":"#REF!"}},{"$f":"#REF!","v":{"$error":"#REF!"}},{"$f":"VLOOKUP(M2,T2:U48,2,TRUE)","v":{"$error":"#REF!"}},{"$f":"#REF!","v":{"$error":"#REF!"}},null,null,null,null,null,null,"Other (explain in Notes Page)","17",null,35,"Teacher Retention ",null,35,"Teacher Retention "]
[{"$f":"VLOOKUP(#REF!,#REF!,5,FALSE)","v":{"$error":"#REF!"}},{"$f":"LEFT(VLOOKUP(#REF!,#REF!,6,FALSE),4)","v":{"$error":"#REF!"}},null,"05","Contractual Services",{"$f":"#REF!","v":{"$error":"#REF!"}},null,null,{"$f":"#REF!","v":{"$error":"#REF!"}},{"$f":"#REF!","v":{"$error":"#REF!"}},{"$f":"#REF!","v":{"$error":"#REF!"}},{"$f":"VLOOKUP(M2,T2:U48,2,TRUE)","v":{"$error":"#REF!"}},{"$f":"#REF!","v":{"$error":"#REF!"}},null,null,null,null,null,null,"Paraprofessional Preparation","18",null,39,"Other (explain in Notes Page)",null,39,"Other (explain in Notes Page)"]
[{"$f":"VLOOKUP(#REF!,#REF!,5,FALSE)","v":{"$error":"#REF!"}},{"$f":"LEFT(VLOOKUP(#REF!,#REF!,6,FALSE),4)","v":{"$error":"#REF!"}},null,"05","Contractual Services",{"$f":"#REF!","v":{"$error":"#REF!"}},null,null,{"$f":"#REF!","v":{"$error":"#REF!"}},{"$f":"#REF!","v":{"$error":"#REF!"}},{"$f":"#REF!","v":{"$error":"#REF!"}},{"$f":"VLOOKUP(M2,T2:U48,2,TRUE)","v":{"$error":"#REF!"}},{"$f":"#REF!","v":{"$error":"#REF!"}},null,null,null,null,null,null,"Parent and Community Involvement","20"]
[{"$f":"VLOOKUP(#REF!,#REF!,5,FALSE)","v":{"$error":"#REF!"}},{"$f":"LEFT(VLOOKUP(#REF!,#REF!,6,FALSE),4)","v":{"$error":"#REF!"}},null,"06","Supplies and Materials",{"$f":"#REF!","v":{"$error":"#REF!"}},null,null,null,null,{"$f":"#REF!","v":{"$error":"#REF!"}},{"$f":"VLOOKUP(M2,T2:U48,2,TRUE)","v":{"$error":"#REF!"}},{"$f":"#REF!","v":{"$error":"#REF!"}},null,null,null,null,null,null,"Parent Involvement","20"]
[{"$f":"VLOOKUP(#REF!,#REF!,5,FALSE)","v":{"$error":"#REF!"}},{"$f":"LEFT(VLOOKUP(#REF!,#REF!,6,FALSE),4)","v":{"$error":"#REF!"}},null,"06","Supplies and Materials",{"$f":"#REF!","v":{"$error":"#REF!"}},null,null,null,null,{"$f":"#REF!","v":{"$error":"#REF!"}},{"$f":"VLOOKUP(M2,T2:U48,2,TRUE)","v":{"$error":"#REF!"}},{"$f":"#REF!","v":{"$error":"#REF!"}},null,null,null,null,null,null,"Parent Programs","20"]
[{"$f":"VLOOKUP(#REF!,#REF!,5,FALSE)","v":{"$error":"#REF!"}},{"$f":"LEFT(VLOOKUP(#REF!,#REF!,6,FALSE),4)","v":{"$error":"#REF!"}},null,"06","Supplies and Materials",{"$f":"#REF!","v":{"$error":"#REF!"}},null,null,null,null,{"$f":"#REF!","v":{"$error":"#REF!"}},{"$f":"VLOOKUP(M2,T2:U48,2,TRUE)","v":{"$error":"#REF!"}},{"$f":"#REF!","v":{"$error":"#REF!"}},null,null,null,null,null,null,"Planning and Evaluation","22"]
[{"$f":"VLOOKUP(#REF!,#REF!,5,FALSE)","v":{"$error":"#REF!"}},{"$f":"LEFT(VLOOKUP(#REF!,#REF!,6,FALSE),4)","v":{"$error":"#REF!"}},null,"07","Travel",{"$f":"#REF!","v":{"$error":"#REF!"}},null,null,null,null,{"$f":"#REF!","v":{"$error":"#REF!"}},{"$f":"VLOOKUP(M2,T2:U48,2,TRUE)","v":{"$error":"#REF!"}},{"$f":"#REF!","v":{"$error":"#REF!"}},null,null,null,null,null,null,"Pre-School Activities","23"]
[{"$f":"VLOOKUP(#REF!,#REF!,5,FALSE)","v":{"$error":"#REF!"}},{"$f":"LEFT(VLOOKUP(#REF!,#REF!,6,FALSE),4)","v":{"$error":"#REF!"}},null,"07","Travel",{"$f":"#REF!","v":{"$error":"#REF!"}},null,null,null,null,{"$f":"#REF!","v":{"$error":"#REF!"}},{"$f":"VLOOKUP(M2,T2:U48,2,TRUE)","v":{"$error":"#REF!"}},{"$f":"#REF!","v":{"$error":"#REF!"}},null,null,null,null,null,null,"Program Administration","24"]
[{"$f":"VLOOKUP(#REF!,#REF!,5,FALSE)","v":{"$error":"#REF!"}},{"$f":"LEFT(VLOOKUP(#REF!,#REF!,6,FALSE),4)","v":{"$error":"#REF!"}},null,"07","Travel",{"$f":"#REF!","v":{"$error":"#REF!"}},null,null,null,null,{"$f":"#REF!","v":{"$error":"#REF!"}},{"$f":"VLOOKUP(M2,T2:U48,2,TRUE)","v":{"$error":"#REF!"}},{"$f":"#REF!","v":{"$error":"#REF!"}},null,null,null,null,null,null,"Public Reporting","25"]
[{"$f":"VLOOKUP(#REF!,#REF!,5,FALSE)","v":{"$error":"#REF!"}},{"$f":"LEFT(VLOOKUP(#REF!,#REF!,6,FALSE),4)","v":{"$error":"#REF!"}},null,"07","Travel",{"$f":"#REF!","v":{"$error":"#REF!"}},null,null,null,null,{"$f":"#REF!","v":{"$error":"#REF!"}},{"$f":"VLOOKUP(M2,T2:U48,2,TRUE)","v":{"$error":"#REF!"}},{"$f":"#REF!","v":{"$error":"#REF!"}},null,null,null,null,null,null,"Recruitment Activities","38"]
[{"$f":"VLOOKUP(#REF!,#REF!,5,FALSE)","v":{"$error":"#REF!"}},{"$f":"LEFT(VLOOKUP(#REF!,#REF!,6,FALSE),4)","v":{"$error":"#REF!"}},null,"08","Other Costs",{"$f":"#REF!","v":{"$error":"#REF!"}},null,null,null,null,{"$f":"#REF!","v":{"$error":"#REF!"}},{"$f":"VLOOKUP(M2,T2:U48,2,TRUE)","v":{"$error":"#REF!"}},{"$f":"#REF!","v":{"$error":"#REF!"}},null,null,null,null,null,null,"Safety/Security Activities","26"]
[{"$f":"VLOOKUP(#REF!,#REF!,5,FALSE)","v":{"$error":"#REF!"}},{"$f":"LEFT(VLOOKUP(#REF!,#REF!,6,FALSE),4)","v":{"$error":"#REF!"}},null,"08","Other Costs",{"$f":"#REF!","v":{"$error":"#REF!"}},null,null,null,null,{"$f":"#REF!","v":{"$error":"#REF!"}},{"$f":"VLOOKUP(M2,T2:U48,2,TRUE)","v":{"$error":"#REF!"}},{"$f":"#REF!","v":{"$error":"#REF!"}},null,null,null,null,null,null,"Schedule A (Dissemination Project)","27"]
[{"$f":"VLOOKUP(#REF!,#REF!,5,FALSE)","v":{"$error":"#REF!"}},{"$f":"LEFT(VLOOKUP(#REF!,#REF!,6,FALSE),4)","v":{"$error":"#REF!"}},null,"08","Other Costs",{"$f":"#REF!","v":{"$error":"#REF!"}},null,null,null,null,{"$f":"#REF!","v":{"$error":"#REF!"}},{"$f":"VLOOKUP(M2,T2:U48,2,TRUE)","v":{"$error":"#REF!"}},{"$f":"#REF!","v":{"$error":"#REF!"}},null,null,null,null,null,null,"Schedule A2 (Prison Education)","28"]
[{"$f":"VLOOKUP(#REF!,#REF!,5,FALSE)","v":{"$error":"#REF!"}},{"$f":"LEFT(VLOOKUP(#REF!,#REF!,6,FALSE),4)","v":{"$error":"#REF!"}},null,"08","Other Costs",{"$f":"#REF!","v":{"$error":"#REF!"}},null,null,null,null,{"$f":"#REF!","v":{"$error":"#REF!"}},{"$f":"VLOOKUP(M2,T2:U48,2,TRUE)","v":{"$error":"#REF!"}},{"$f":"#REF!","v":{"$error":"#REF!"}},null,null,null,null,null,null,"School Choice","29"]
[{"$f":"VLOOKUP(#REF!,#REF!,5,FALSE)","v":{"$error":"#REF!"}},{"$f":"LEFT(VLOOKUP(#REF!,#REF!,6,FALSE),4)","v":{"$error":"#REF!"}},null,"08","Other Costs",{"$f":"#REF!","v":{"$error":"#REF!"}},null,null,null,null,{"$f":"#REF!","v":{"$error":"#REF!"}},{"$f":"VLOOKUP(M2,T2:U48,2,TRUE)","v":{"$error":"#REF!"}},{"$f":"#REF!","v":{"$error":"#REF!"}},null,null,null,null,null,null,"School Nurses","30"]
[{"$f":"VLOOKUP(#REF!,#REF!,5,FALSE)","v":{"$error":"#REF!"}},{"$f":"LEFT(VLOOKUP(#REF!,#REF!,6,FALSE),4)","v":{"$error":"#REF!"}},null,"08","Other Costs",{"$f":"#REF!","v":{"$error":"#REF!"}},null,null,null,null,{"$f":"#REF!","v":{"$error":"#REF!"}},{"$f":"VLOOKUP(M2,T2:U48,2,TRUE)","v":{"$error":"#REF!"}},{"$f":"#REF!","v":{"$error":"#REF!"}},null,null,null,null,null,null,"School Restructuring/SLC","31"]
[{"$f":"VLOOKUP(#REF!,#REF!,5,FALSE)","v":{"$error":"#REF!"}},{"$f":"LEFT(VLOOKUP(#REF!,#REF!,6,FALSE),4)","v":{"$error":"#REF!"}},null,"08","Other Costs",{"$f":"#REF!","v":{"$error":"#REF!"}},null,null,null,null,{"$f":"#REF!","v":{"$error":"#REF!"}},{"$f":"VLOOKUP(M2,T2:U48,2,TRUE)","v":{"$error":"#REF!"}},{"$f":"#REF!","v":{"$error":"#REF!"}},null,null,null,null,null,null,"SPED Services/Private School Students","32"]
[{"$f":"VLOOKUP(#REF!,#REF!,5,FALSE)","v":{"$error":"#REF!"}},{"$f":"LEFT(VLOOKUP(#REF!,#REF!,6,FALSE),4)","v":{"$error":"#REF!"}},null,"08","Other Costs",{"$f":"#REF!","v":{"$error":"#REF!"}},null,null,null,null,{"$f":"#REF!","v":{"$error":"#REF!"}},{"$f":"VLOOKUP(M2,T2:U48,2,TRUE)","v":{"$error":"#REF!"}},{"$f":"#REF!","v":{"$error":"#REF!"}},null,null,null,null,null,null,"SPED Services/Public School Students","33"]
[{"$f":"VLOOKUP(#REF!,#REF!,5,FALSE)","v":{"$error":"#REF!"}},{"$f":"LEFT(VLOOKUP(#REF!,#REF!,6,FALSE),4)","v":{"$error":"#REF!"}},null,"08","Other Costs","School choice transportation",null,null,null,null,{"$f":"#REF!","v":{"$error":"#REF!"}},{"$f":"VLOOKUP(M2,T2:U48,2,TRUE)","v":{"$error":"#REF!"}},null,null,null,null,null,null,null,"Student Assessment","34"]
[{"$f":"VLOOKUP(#REF!,#REF!,5,FALSE)","v":{"$error":"#REF!"}},{"$f":"LEFT(VLOOKUP(#REF!,#REF!,6,FALSE),4)","v":{"$error":"#REF!"}},null,"08","Other Costs","Software Licenses",null,null,null,null,{"$f":"#REF!","v":{"$error":"#REF!"}},{"$f":"VLOOKUP(M2,T2:U48,2,TRUE)","v":{"$error":"#REF!"}},null,null,null,null,null,null,null,"Student Support Services","35"]
[{"$f":"VLOOKUP(#REF!,#REF!,5,FALSE)","v":{"$error":"#REF!"}},{"$f":"LEFT(VLOOKUP(#REF!,#REF!,6,FALSE),4)","v":{"$error":"#REF!"}},null,"09","Indirect Costs","Indirect Costs",null,null,null,null,{"$f":"#REF!","v":{"$error":"#REF!"}},{"$f":"VLOOKUP(M2,T2:U48,2,TRUE)","v":{"$error":"#REF!"}},null,null,null,null,null,null,null,"Substance Prevention Education","41"]
[{"$f":"VLOOKUP(#REF!,#REF!,5,FALSE)","v":{"$error":"#REF!"}},{"$f":"LEFT(VLOOKUP(#REF!,#REF!,6,FALSE),4)","v":{"$error":"#REF!"}},null,"10","Equipment",{"$f":"#REF!","v":{"$error":"#REF!"}},null,null,null,null,{"$f":"#REF!","v":{"$error":"#REF!"}},{"$f":"VLOOKUP(M2,T2:U48,2,TRUE)","v":{"$error":"#REF!"}},{"$f":"#REF!","v":{"$error":"#REF!"}},null,null,null,null,null,null,"Supplementary Educational Services","36"]
[{"$f":"VLOOKUP(#REF!,#REF!,5,FALSE)","v":{"$error":"#REF!"}},{"$f":"LEFT(VLOOKUP(#REF!,#REF!,6,FALSE),4)","v":{"$error":"#REF!"}},null,"10","Equipment",{"$f":"#REF!","v":{"$error":"#REF!"}},null,null,null,null,{"$f":"#REF!","v":{"$error":"#REF!"}},{"$f":"VLOOKUP(M2,T2:U48,2,TRUE)","v":{"$error":"#REF!"}},{"$f":"#REF!","v":{"$error":"#REF!"}},null,null,null,null,null,null,"Teacher Preparation","37"]
[null,null,null,null,null,null,null,null,null,null,null,null,null,null,null,null,null,null,null,"Teacher Preparation/Retention/Recognition","37"]
[null,null,null,null,null,null,null,null,null,null,null,null,null,null,null,null,null,null,null,"Teacher Recognition Programs","37"]
[null,null,null,null,null,null,null,null,null,null,null,null,null,null,null,null,null,null,null,"Teacher Retention ","37"]
[null,null,null,null,null,null,null,null,null,null,null,null,null,null,null,null,null,null,null,"Technology for Instruction","40"]
[null,null,null,null,null,null,null,null,null,null,null,null,null,null,null,null,null,null,null,"Technology Literacy","39"]
[null,null,null,null,null,null,null,null,null,null,null,null,null,null,null,null,null,null,null,"Violence Prevention Education",41]
[null,null,null,null,null,null,null,null,null,null,null,null,null,null,null,null,null,null,null,"Violence/Alcohol,Tobacco, Other Drugs Education","41"]